fUSD/lending_fUSD_20250811
["ID","MTS","AMOUNT","RATE_DAILY","PERIOD"]
[378667847,1754951451133,-1362.45,0.00016712,2]
[378667848,1754951451143,-417.73,0.00016712,2]
[378667849,1754951451152,-546.93,0.00016712,2]
[378667850,1754951451161,-460.65,0.00016712,2]
[378667851,1754951451171,-1407.23,0.00016712,2]
[378667852,1754951451180,-400.0,0.00016712,2]
[378667853,1754951451189,-409.15,0.00016712,2]
[378667854,1754951451198,-635.76,0.00016712,2]
[378667855,1754951451208,-635.76,0.00016712,2]
[378667856,1754951451217,-405.83,0.00016712,2]
[378667857,1754951451226,-1010.98,0.00016712,2]
[378667858,1754951451236,-537.37,0.00016712,2]
[378667859,1754951451245,-456.23,0.00016712,2]
[378667860,1754951451254,-400.0,0.00016712,2]
[378667861,1754951451264,-511.17,0.00016712,2]
[378667862,1754951451273,-582.61,0.00016712,2]
[378667863,1754951451282,-400.0,0.00016712,2]
[378667864,1754951451292,-469.95,0.00016712,2]
[378667865,1754951451301,-400.0,0.00016712,2]
[378667866,1754951451310,-610.59,0.00016712,2]
[378667867,1754951451319,-432.38,0.00016712,2]
[378667868,1754951451329,-400.0,0.00016712,2]
[378667869,1754951451338,-400.0,0.00016712,2]
[378667870,1754951451348,-400.0,0.00016712,2]
[378667871,1754951451357,-1118.17,0.00016712,2]
[378667872,1754951451366,-2669.23,0.00016712,2]
[378667873,1754951451375,-400.0,0.00016712,2]
[378667874,1754951451385,-2669.23,0.00016712,2]
[378667875,1754951451395,-796.63,0.00016712,2]
[378667876,1754951451404,-400.0,0.00016712,2]
[378667877,1754951451414,-400.0,0.00016712,2]
[378667878,1754951451423,-400.0,0.00016712,2]
[378667879,1754951451432,-922.6,0.00016712,2]
[378667880,1754951451442,-520.35,0.00016712,2]
[378667881,1754951451451,-611.63,0.00016712,2]
[378667882,1754951451460,-400.0,0.00016712,2]
[378667883,1754951451469,-1880.66,0.00016712,2]
[378667884,1754951451479,-400.0,0.00016712,2]
[378667885,1754951451489,-400.0,0.00016712,2]
[378667886,1754951451498,-400.0,0.00016712,2]
[378667887,1754951451508,-683.59,0.00016712,2]
[378667888,1754951451517,-400.0,0.00016712,2]
[378667889,1754951451526,-738.52,0.00016712,2]
[378667890,1754951451536,-609.44,0.00016712,2]
[378667891,1754951451545,-400.0,0.00016712,2]
[378667892,1754951451554,-400.0,0.00016712,2]
[378667893,1754951451564,-1165.58,0.00016712,2]
[378667894,1754951451574,-400.0,0.00016712,2]
[378667895,1754951451583,-400.0,0.00016712,2]
[378667896,1754951451592,-653.789776,0.00016712,2]
[378667897,1754951451602,-935.61,0.00016712,2]
[378667898,1754951451611,-1130.31,0.00016712,2]
[378667899,1754951451621,-416.4,0.00016712,2]
[378667900,1754951451630,-400.0,0.00016712,2]
[378667901,1754951451640,-1547.84,0.00016712,2]
[378667902,1754951451653,-400.0,0.00016712,2]
[378667903,1754951451663,-468.07,0.00016712,2]
[378667904,1754951451673,-1149.74,0.00016712,2]
[378667905,1754951451683,-400.0,0.00016712,2]
[378667906,1754951451692,-465.78,0.00016712,2]
[378667907,1754951451702,-664.18,0.00016712,2]
[378667908,1754951451711,-428.67,0.00016712,2]
[378667909,1754951451721,-400.0,0.00016712,2]
[378667910,1754951451731,-756.94,0.00016712,2]
[378667911,1754951451740,-590.02,0.00016712,2]
[378667912,1754951451750,-379.24349,0.00016712,2]
[378667913,1754951451759,-400.0,0.00016712,2]
[378667914,1754951451769,-400.0,0.00016712,2]
[378667915,1754951451780,-624.31,0.00016712,2]
[378667916,1754951451789,-695.22,0.00016712,2]
[378667917,1754951451799,-402.42,0.00016712,2]
[378667918,1754951451808,-620.119934,0.00016712,2]
[378667919,1754951451818,-1114.61,0.00016712,2]
[378667920,1754951451827,-661.46,0.00016712,2]
[378667921,1754951451837,-400.0,0.00016712,2]
[378667922,1754951451846,-400.0,0.00016712,2]
[378667923,1754951451855,-400.0,0.00016712,2]
[378667924,1754951451865,-400.0,0.00016712,2]
[378667925,1754951451874,-457.67,0.00016712,2]
[378667926,1754951451883,-1138.65,0.00016712,2]
[378667927,1754951451893,-400.0,0.00016712,2]
[378667928,1754951451903,-1324.57,0.00016712,2]
[378667929,1754951451914,-514.19,0.00016712,2]
[378667930,1754951451923,-1088.53,0.00016712,2]
[378667931,1754951451933,-400.0,0.00016712,2]
[378667932,1754951451943,-400.0,0.00016712,2]
[378667933,1754951451956,-497.9,0.00016712,2]
[378667934,1754951451965,-400.0,0.00016712,2]
[378667935,1754951451974,-400.0,0.00016712,2]
[378667936,1754951451984,-535.29,0.00016712,2]
[378667937,1754951451995,-664.65,0.00016712,2]
[378667938,1754951452004,-400.0,0.00016712,2]
[378667939,1754951452016,-555.39,0.00016712,2]
[378667940,1754951452027,-487.31,0.00016712,2]
[378667941,1754951452036,-558.53,0.00016712,2]
[378667942,1754951452046,-1038.4,0.00016712,2]
[378667943,1754951452055,-400.0,0.00016712,2]
[378667944,1754951452065,-400.0,0.00016712,2]
[378667945,1754951452074,-719.54,0.00016712,2]
[378667946,1754951452084,-605.37,0.00016712,2]
[378667947,1754951452093,-618.57,0.00016712,2]
[378667948,1754951452102,-2914.16,0.00016712,2]
[378667949,1754951452112,-595.98,0.00016712,2]
[378667950,1754951452122,-2174.8,0.00016712,2]
[378667951,1754951452131,-713.2,0.00016712,2]
[378667952,1754951452141,-400.0,0.00016712,2]
[378667953,1754951452462,-400.0,0.00016712,2]
[378667954,1754951452471,-400.0,0.00016712,2]
[378667955,1754951452481,-400.0,0.00016712,2]
[378667956,1754951452490,-400.0,0.00016712,2]
[378667957,1754951452500,-569.9,0.00016712,2]
[378667958,1754951452509,-411.95,0.00016712,2]
[378667959,1754951452518,-574.72,0.00016712,2]
[378667960,1754951452527,-490.928281,0.00016712,2]
[378667961,1754951452537,-400.0,0.00016712,2]
[378667962,1754951452546,-616.3,0.00016712,2]
[378667963,1754951452555,-400.0,0.00016712,2]
[378667964,1754951452565,-400.0,0.00016712,2]
[378667965,1754951452574,-489.34,0.00016712,2]
[378667966,1754951452583,-400.1,0.00016712,2]
[378667967,1754951452593,-326.34672544,0.00016712,2]
[378667968,1754951452602,-400.0,0.00016712,2]
[378667969,1754951452612,-754.42,0.00016712,2]
[378667970,1754951452621,-400.0,0.00016712,2]
[378667971,1754951452630,-400.0,0.00016712,2]
[378667972,1754951452639,-1835.86,0.00016712,2]
[378667973,1754951452648,-199.18377076,0.00016712,2]
[378667974,1754951452659,-400.0,0.00016712,2]
[378667975,1754951452668,-400.0,0.00016712,2]
[378667976,1754951452678,-501.66,0.00016712,2]
[378667977,1754951452687,-936.71,0.00016712,2]
[378667978,1754951452696,-549.21,0.00016712,2]
[378667979,1754951452706,-809.14,0.00016712,2]
[378667980,1754951452715,-916.69,0.00016712,2]
[378667981,1754951452724,-612.18,0.00016712,2]
[378667982,1754951452733,-623.21,0.00016712,2]
[378667983,1754951452743,-578.62,0.00016712,2]
[378667984,1754951452751,-400.0,0.00016712,2]
[378667985,1754951452761,-564.44,0.00016712,2]
[378667986,1754951452770,-631.48,0.00016712,2]
[378667987,1754951452779,-400.0,0.00016712,2]
[378667988,1754951452788,-400.0,0.00016712,2]
[378667989,1754951452797,-893.13,0.00016712,2]
[378667990,1754951452806,-400.0,0.00016712,2]
[378667991,1754951452816,-400.0,0.00016712,2]
[378667992,1754951452825,-400.0,0.00016712,2]
[378667993,1754951452835,-689.06,0.00016712,2]
[378667994,1754951452844,-469.28,0.00016712,2]
[378667995,1754951452854,-2023.41,0.00016712,2]
[378667996,1754951452863,-1574.61,0.00016712,2]
[378667997,1754951452872,-505.39,0.00016712,2]
[378667998,1754951452882,-477.93,0.00016712,2]
[378667999,1754951452891,-686.88,0.00016712,2]
[378668000,1754951452901,-1389.51,0.00016712,2]
[378668001,1754951452910,-400.0,0.00016712,2]
[378668002,1754951452919,-881.22,0.00016712,2]
[378668003,1754951452928,-400.0,0.00016712,2]
[378668004,1754951452938,-407.57,0.00016712,2]
[378668005,1754951452950,-419.18,0.00016712,2]
[378668006,1754951452959,-790.05,0.00016712,2]
[378668007,1754951452968,-400.0,0.00016712,2]
[378668008,1754951452977,-656.85,0.00016712,2]
[378668009,1754951452987,-590.95,0.00016712,2]
[378668010,1754951452996,-1369.98,0.00016712,2]
[378668011,1754951453005,-546.08,0.00016712,2]
[378668012,1754951453014,-830.78,0.00016712,2]
[378668013,1754951453025,-1442.57,0.00016712,2]
[378668014,1754951453034,-400.0,0.00016712,2]
[378668015,1754951453043,-400.0,0.00016712,2]
[378668016,1754951453053,-389.8320603,0.00016712,2]
[378668017,1754951453061,-150.0,0.00016746,2]
[378668018,1754951453071,-150.0,0.00016746,2]
[378668019,1754951453080,-150.0,0.00016746,2]
[378668020,1754951453089,-150.0,0.00016746,2]
[378668021,1754951453098,-200.0,0.00016756,2]
[378668022,1754951453107,-600.0,0.00016757,2]
[378668023,1754951453116,-1043.0,0.00016761,2]
[378668024,1754951453125,-1295.0,0.00016761,2]
[378668025,1754951453134,-565.0,0.00016761,2]
[378668026,1754951453143,-2085.574,0.00016761,2]
[378668027,1754951453152,-598.0,0.00016761,2]
[378668028,1754951453162,-1654.0,0.00016761,2]
[378668029,1754951453172,-893.0,0.00016761,2]
[378668030,1754951453181,-1171.0,0.00016761,2]
[378668031,1754951453190,-1253.0,0.00016761,2]
[378668032,1754951453199,-957.0,0.00016761,2]
[378668033,1754951453208,-203.38204803,0.00016763,2]
[378668034,1754951453217,-400.0,0.00016763,2]
[378668035,1754951453226,-400.0,0.00016763,2]
[378668036,1754951453236,-400.0,0.00016763,2]
[378668037,1754951453245,-400.0,0.00016763,2]
[378668038,1754951453255,-400.0,0.00016763,2]
[378668039,1754951453264,-400.0,0.00016763,2]
[378668040,1754951453273,-400.0,0.00016763,2]
[378668041,1754951453282,-400.0,0.00016763,2]
[378668042,1754951453294,-400.0,0.00016763,2]
[378668043,1754951453303,-400.0,0.00016763,2]
[378668044,1754951453314,-400.0,0.00016763,2]
[378668045,1754951453322,-400.0,0.00016763,2]
[378668046,1754951453332,-400.0,0.00016763,2]
[378668047,1754951453341,-281.12632795,0.00016763,2]
[378668048,1754951453351,-400.0,0.00016763,2]
[378668049,1754951453361,-400.0,0.00016763,2]
[378668050,1754951453371,-400.0,0.00016763,2]
[378668051,1754951453381,-400.0,0.00016763,2]
[378668052,1754951453391,-400.0,0.00016763,2]
[378668053,1754951453402,-242.41480415,0.00016763,2]
[378668054,1754951453413,-400.0,0.00016763,2]
[378668055,1754951453423,-400.0,0.00016763,2]
[378668056,1754951453433,-400.0,0.00016763,2]
[378668057,1754951453443,-318.17635406,0.00016763,2]
[378668058,1754951453456,-400.0,0.00016763,2]
[378668059,1754951453467,-400.0,0.00016763,2]
[378668060,1754951453477,-400.0,0.00016763,2]
[378668061,1754951453488,-400.0,0.00016763,2]
[378668062,1754951453498,-400.0,0.00016763,2]
[378668063,1754951453509,-400.0,0.00016763,2]
[378668064,1754951453519,-400.0,0.00016763,2]
[378668065,1754951453529,-400.0,0.00016763,2]
[378668066,1754951453538,-400.0,0.00016763,2]
[378668067,1754951453548,-400.0,0.00016763,2]
[378668068,1754951453557,-400.0,0.00016763,2]
[378668069,1754951453567,-400.0,0.00016763,2]
[378668070,1754951453576,-400.0,0.00016763,2]
[378668071,1754951453585,-400.0,0.00016763,2]
[378668072,1754951453595,-400.0,0.00016763,2]
[378668073,1754951453604,-400.0,0.00016763,2]
[378668074,1754951453613,-400.0,0.00016763,2]
[378668075,1754951453623,-400.0,0.00016763,2]
[378668076,1754951453632,-400.0,0.00016763,2]
[378668077,1754951453641,-370.60257317,0.00016763,2]
[378668078,1754951453651,-400.0,0.00016763,2]
[378668079,1754951453660,-278.17,0.00016763,2]
[378668080,1754951453670,-400.0,0.00016763,2]
[378668081,1754951453680,-400.0,0.00016763,2]
[378668082,1754951453689,-400.0,0.00016763,2]
[378668083,1754951453698,-400.0,0.00016763,2]
[378668084,1754951453708,-400.0,0.00016763,2]
[378668085,1754951453717,-400.0,0.00016763,2]
[378668086,1754951453726,-400.0,0.00016763,2]
[378668087,1754951453736,-400.0,0.00016763,2]
[378668088,1754951453745,-400.0,0.00016763,2]
[378668089,1754951453755,-400.0,0.00016763,2]
[378668090,1754951453765,-400.0,0.00016763,2]
[378668091,1754951453774,-400.0,0.00016763,2]
[378668092,1754951453784,-400.0,0.00016763,2]
[378668093,1754951453793,-400.0,0.00016763,2]
[378668094,1754951453803,-408.0,0.00016763,2]
[378668095,1754951453812,-400.0,0.00016763,2]
[378668096,1754951453822,-400.0,0.00016763,2]
[378668097,1754951453831,-400.0,0.00016763,2]
[378668098,1754951453840,-400.0,0.00016763,2]
[378668099,1754951453849,-400.0,0.00016763,2]
[378668100,1754951453859,-400.0,0.00016763,2]
[378668101,1754951453868,-220.95462851,0.00016763,2]
[378668102,1754951453877,-400.0,0.00016763,2]
[378668103,1754951453887,-400.0,0.00016763,2]
[378668104,1754951453896,-400.0,0.00016763,2]
[378668105,1754951453905,-401.58767876,0.00016763,2]
[378668106,1754951453916,-400.0,0.00016763,2]
[378668107,1754951453925,-400.0,0.00016763,2]
[378668108,1754951453935,-400.0,0.00016763,2]
[378668109,1754951453944,-400.0,0.00016763,2]
[378668110,1754951453957,-400.0,0.00016763,2]
[378668111,1754951453966,-400.0,0.00016763,2]
[378668112,1754951453975,-453.67428156,0.00016763,2]
[378668113,1754951453984,-400.0,0.00016763,2]
[378668114,1754951453995,-400.0,0.00016763,2]
[378668115,1754951454004,-253.890762,0.00016763,2]
[378668116,1754951454014,-400.0,0.00016763,2]
[378668117,1754951454024,-400.0,0.00016763,2]
[378668118,1754951454034,-400.0,0.00016763,2]
[378668119,1754951454044,-400.0,0.00016763,2]
[378668120,1754951454053,-400.0,0.00016763,2]
[378668121,1754951454062,-400.0,0.00016763,2]
[378668122,1754951454071,-151.31581828,0.00016763,2]
[378668123,1754951454080,-400.0,0.00016763,2]
[378668124,1754951454090,-400.0,0.00016763,2]
[378668125,1754951454099,-400.0,0.00016763,2]
[378668126,1754951454108,-400.0,0.00016763,2]
[378668127,1754951454117,-400.0,0.00016763,2]
[378668128,1754951454126,-400.0,0.00016763,2]
[378668129,1754951454135,-400.0,0.00016763,2]
[378668130,1754951454145,-400.0,0.00016763,2]
[378668131,1754951454154,-400.0,0.00016763,2]
[378668132,1754951454165,-400.0,0.00016763,2]
[378668133,1754951454175,-400.0,0.00016763,2]
[378668134,1754951454184,-400.0,0.00016763,2]
[378668135,1754951454193,-400.0,0.00016763,2]
[378668136,1754951454202,-400.0,0.00016763,2]
[378668137,1754951454211,-703.07,0.00016763,2]
[378668138,1754951454220,-400.0,0.00016763,2]
[378668139,1754951454229,-400.0,0.00016763,2]
[378668140,1754951454239,-400.0,0.00016763,2]
[378668141,1754951454248,-1145.83,0.00016763,2]
[378668142,1754951454257,-400.0,0.00016763,2]
[378668143,1754951454266,-1713.02,0.00016763,2]
[378668144,1754951454276,-400.0,0.00016763,2]
[378668145,1754951454285,-1432.32,0.00016763,2]
[378668146,1754951454294,-1393.1,0.00016763,2]
[378668147,1754951454304,-400.0,0.00016763,2]
[378668148,1754951454313,-400.0,0.00016763,2]
[378668149,1754951454322,-400.0,0.00016763,2]
[378668150,1754951454331,-400.0,0.00016763,2]
[378668151,1754951454341,-776.07,0.00016763,2]
[378668152,1754951454350,-400.0,0.00016763,2]
[378668153,1754951454360,-867.94,0.00016763,2]
[378668154,1754951454370,-1610.69,0.00016763,2]
[378668155,1754951454380,-400.0,0.00016763,2]
[378668156,1754951454389,-941.44,0.00016763,2]
[378668157,1754951454398,-400.0,0.00016763,2]
[378668158,1754951454408,-400.0,0.00016763,2]
[378668159,1754951454417,-736.02,0.00016763,2]
[378668160,1754951454427,-400.0,0.00016763,2]
[378668161,1754951454437,-400.0,0.00016763,2]
[378668162,1754951454449,-1275.57,0.00016763,2]
[378668163,1754951454460,-400.0,0.00016763,2]
[378668164,1754951454470,-6801.67,0.00016763,2]
[378668165,1754951454480,-400.0,0.00016763,2]
[378668166,1754951454490,-400.0,0.00016763,2]
[378668167,1754951454500,-162.64857054,0.0001679,2]
[378668168,1754951454510,-1000.0,0.00016799,2]
[378668169,1754951454521,-1000.0,0.000168,2]
[378668170,1754951454530,-533.67902791,0.00016801,2]
[378668171,1754951454539,-4258.81085927,0.00016801,2]
[378668172,1754951454549,-216.63922413,0.00016801,2]
[378668173,1754951454558,-207.0,0.0001682,2]
[378668174,1754951454567,-2262.5,0.00016842,2]
[378668175,1754951454576,-500.0,0.0001685,2]
[378668176,1754951454585,-500.0,0.0001685,2]
[378668177,1754951454595,-500.0,0.0001685,2]
[378668178,1754951454604,-200.0,0.0001685,2]
[378668179,1754951454613,-400.0,0.00016863,2]
[378668180,1754951454623,-400.0,0.00016863,2]
[378668181,1754951454632,-1858.09,0.00016863,2]
[378668182,1754951454643,-1086.66,0.00016863,2]
[378668183,1754951454654,-864.6,0.00016863,2]
[378668184,1754951454665,-400.0,0.00016863,2]
[378668185,1754951454674,-400.0,0.00016863,2]
[378668186,1754951454683,-7991.3,0.00016863,2]
[378668187,1754951454694,-216.57,0.00016881,2]
[378668188,1754951454704,-754.05581862,0.00016886,2]
[378668189,1754951454714,-158.02719026,0.00016886,2]
[378668190,1754951454724,-30935.32484314,0.0001689,2]
[378668191,1754951454734,-1932.0,0.000169,2]
[378668192,1754951454744,-444.0419,0.00016901,2]
[378668193,1754951454753,-178.18,0.00016964,2]
[378668194,1754951454836,-150.0,0.00016985,2]
[378668195,1754951454846,-250.0,0.00016985,2]
[378668196,1754951454856,-500.0,0.00016985,2]
[378668197,1754951454866,-150.0,0.00016985,2]
[378668198,1754951454875,-500.0,0.00016985,2]
[378668199,1754951454884,-197.0,0.00016985,2]
[378668200,1754951454894,-228.09633422,0.00016985,2]
[378668201,1754951454903,-500.0,0.00016985,2]
[378668202,1754951454913,-265.0,0.00016985,2]
[378668203,1754951454922,-300.0,0.00016985,2]
[378668204,1754951454931,-425.39,0.00016986,2]
[378668205,1754951454941,-151.0,0.00016986,2]
[378668206,1754951454953,-832.98,0.00016986,2]
[378668207,1754951454962,-400.0,0.00016986,2]
[378668208,1754951454971,-819.26,0.00016986,2]
[378668209,1754951454981,-400.0,0.00016986,2]
[378668210,1754951454991,-400.0,0.00016986,2]
[378668211,1754951454999,-400.0,0.00016986,2]
[378668212,1754951455009,-705.7,0.00016986,2]
[378668213,1754951455018,-1103.74,0.00016986,2]
[378668214,1754951455029,-151.0,0.00016986,2]
[378668215,1754951455039,-400.0,0.00016986,2]
[378668216,1754951455048,-151.0,0.00016986,2]
[378668217,1754951455059,-400.0,0.00016986,2]
[378668218,1754951455068,-7224.57,0.00016986,2]
[378668219,1754951455077,-151.0,0.00016986,2]
[378668220,1754951455087,-659.33,0.00016986,2]
[378668221,1754951455096,-870.25,0.00016986,2]
[378668222,1754951455105,-1783.49,0.00016986,2]
[378668223,1754951455115,-151.0,0.00016986,2]
[378668224,1754951455124,-400.0,0.00016986,2]
[378668225,1754951455133,-400.0,0.00016986,2]
[378668226,1754951455143,-400.0,0.00016986,2]
[378668227,1754951455151,-400.0,0.00016986,2]
[378668228,1754951455161,-400.0,0.00016986,2]
[378668229,1754951455170,-400.0,0.00016986,2]
[378668230,1754951455179,-907.06,0.00016986,2]
[378668231,1754951455188,-400.0,0.00016986,2]
[378668232,1754951455197,-400.0,0.00016986,2]
[378668233,1754951455206,-400.0,0.00016986,2]
[378668234,1754951455215,-400.0,0.00016986,2]
[378668235,1754951455224,-485.15,0.00016986,2]
[378668236,1754951455233,-400.0,0.00016986,2]
[378668237,1754951455242,-400.0,0.00016986,2]
[378668238,1754951455251,-400.0,0.00016986,2]
[378668239,1754951455260,-151.0,0.00016986,2]
[378668240,1754951455269,-400.0,0.00016986,2]
[378668241,1754951455278,-792.97,0.00016986,2]
[378668242,1754951455288,-400.0,0.00016986,2]
[378668243,1754951455298,-400.0,0.00016986,2]
[378668244,1754951455307,-400.0,0.00016986,2]
[378668245,1754951455316,-400.0,0.00016986,2]
[378668246,1754951455325,-231.4848371,0.00016986,2]
[378668247,1754951455334,-400.0,0.00016986,2]
[378668248,1754951455343,-569.88389,0.00016986,2]
[378668249,1754951455352,-400.0,0.00016986,2]
[378668250,1754951455361,-400.0,0.00016986,2]
[378668251,1754951455370,-400.0,0.00016986,2]
[378668252,1754951455379,-569.88389,0.00016986,2]
[378668253,1754951455388,-417.76,0.00016986,2]
[378668254,1754951455397,-400.0,0.00016986,2]
[378668255,1754951455406,-400.0,0.00016986,2]
[378668256,1754951455415,-400.0,0.00016986,2]
[378668257,1754951455424,-421.94,0.00016986,2]
[378668258,1754951455434,-400.0,0.00016986,2]
[378668259,1754951455442,-400.0,0.00016986,2]
[378668260,1754951455452,-587.84,0.00016986,2]
[378668261,1754951455461,-400.0,0.00016986,2]
[378668262,1754951455470,-285.91,0.00016986,2]
[378668263,1754951455479,-400.0,0.00016986,2]
[378668264,1754951455489,-540.83,0.00016986,2]
[378668265,1754951455498,-400.0,0.00016986,2]
[378668266,1754951455508,-167.271184,0.00016986,2]
[378668267,1754951455518,-400.0,0.00016986,2]
[378668268,1754951455527,-400.0,0.00016986,2]
[378668269,1754951455536,-400.0,0.00016986,2]
[378668270,1754951455545,-400.0,0.00016986,2]
[378668271,1754951455554,-1459.5,0.00016986,2]
[378668272,1754951455563,-400.0,0.00016986,2]
[378668273,1754951455572,-491.56,0.00016986,2]
[378668274,1754951455581,-400.0,0.00016986,2]
[378668275,1754951455590,-151.0,0.00016986,2]
[378668276,1754951455599,-584.24,0.00016986,2]
[378668277,1754951455608,-400.0,0.00016986,2]
[378668278,1754951455617,-475.39,0.00016986,2]
[378668279,1754951455625,-400.0,0.00016986,2]
[378668280,1754951455634,-151.0,0.00016986,2]
[378668281,1754951455643,-400.0,0.00016986,2]
[378668282,1754951455652,-982.43,0.00016986,2]
[378668283,1754951455663,-420.48,0.00016986,2]
[378668284,1754951455673,-400.0,0.00016986,2]
[378668285,1754951455683,-400.0,0.00016986,2]
[378668286,1754951455692,-553.33,0.00016986,2]
[378668287,1754951455701,-405.34,0.00016986,2]
[378668288,1754951455710,-412.67,0.00016986,2]
[378668289,1754951455720,-531.31,0.00016986,2]
[378668290,1754951455729,-400.0,0.00016986,2]
[378668291,1754951455738,-400.0,0.00016986,2]
[378668292,1754951455747,-400.0,0.00016986,2]
[378668293,1754951455756,-617.08,0.00016986,2]
[378668294,1754951455765,-400.0,0.00016986,2]
[378668295,1754951455775,-400.0,0.00016986,2]
[378668296,1754951455784,-1253.71,0.00016986,2]
[378668297,1754951455793,-400.0,0.00016986,2]
[378668298,1754951455802,-400.0,0.00016986,2]
[378668299,1754951455812,-400.0,0.00016986,2]
[378668300,1754951455821,-690.49,0.00016986,2]
[378668301,1754951455831,-400.0,0.00016986,2]
[378668302,1754951455840,-613.62,0.00016986,2]
[378668303,1754951455849,-400.0,0.00016986,2]
[378668304,1754951455860,-476.32,0.00016986,2]
[378668305,1754951455869,-412.4,0.00016986,2]
[378668306,1754951455879,-400.0,0.00016986,2]
[378668307,1754951455888,-400.0,0.00016986,2]
[378668308,1754951455897,-547.87,0.00016986,2]
[378668309,1754951455908,-510.58,0.00016986,2]
[378668310,1754951455917,-400.0,0.00016986,2]
[378668311,1754951455926,-400.0,0.00016986,2]
[378668312,1754951455935,-487.92,0.00016986,2]
[378668313,1754951455945,-400.0,0.00016986,2]
[378668314,1754951455956,-400.0,0.00016986,2]
[378668315,1754951455966,-400.0,0.00016986,2]
[378668316,1754951455974,-400.0,0.00016986,2]
[378668317,1754951455983,-400.0,0.00016986,2]
[378668318,1754951455993,-446.46,0.00016986,2]
[378668319,1754951456002,-418.75,0.00016986,2]
[378668320,1754951456011,-400.0,0.00016986,2]
[378668321,1754951456036,-486.35,0.00016986,2]
[378668322,1754951456045,-400.0,0.00016986,2]
[378668323,1754951456054,-400.0,0.00016986,2]
[378668324,1754951456064,-764.83,0.00016986,2]
[378668325,1754951456072,-647.07,0.00016986,2]
[378668326,1754951456082,-400.0,0.00016986,2]
[378668327,1754951456091,-400.0,0.00016986,2]
[378668328,1754951456100,-400.0,0.00016986,2]
[378668329,1754951456109,-438.43,0.00016986,2]
[378668330,1754951456118,-400.0,0.00016986,2]
[378668331,1754951456127,-1005.81,0.00016986,2]
[378668332,1754951456136,-413.69,0.00016986,2]
[378668333,1754951456145,-412.59,0.00016986,2]
[378668334,1754951456154,-400.0,0.00016986,2]
[378668335,1754951456166,-1522.93,0.00016986,2]
[378668336,1754951456174,-506.55,0.00016986,2]
[378668337,1754951456183,-463.98,0.00016986,2]
[378668338,1754951456192,-459.98,0.00016986,2]
[378668339,1754951456201,-694.79,0.00016986,2]
[378668340,1754951456210,-400.0,0.00016986,2]
[378668341,1754951456220,-400.0,0.00016986,2]
[378668342,1754951456229,-401.28,0.00016986,2]
[378668343,1754951456238,-400.0,0.00016986,2]
[378668344,1754951456247,-400.0,0.00016986,2]
[378668345,1754951456256,-576.19,0.00016986,2]
[378668346,1754951456265,-400.0,0.00016986,2]